[Event "Titled Tuesday Blitz August 3 2021"]
[White "Nguyen, Hong Anh"]
[Black "Petrovskyi, Vadym"]
[WhiteFideId "12406732"]
[BlackFideId "14165210"]
[WhiteElo "1974"]
[BlackElo "2305"]
[Result "1/2-1/2"]
[Round "06"]
[TimeControl "180+1"]
[Date "2021.08.03"]
[WhiteClock "0:00:26"]
[BlackClock "0:00:28"]

1. d4 {[%clk 0:02:59]}  Nf6 {[%clk 0:02:58]} 2. c4 {[%clk 0:03:00]}  g6 {[%clk 0:02:57]} 3. Nf3 {[%clk 0:03:00]}  Bg7 {[%clk 0:02:57]} 4. g3 {[%clk 0:03:01]}  O-O {[%clk 0:02:57]} 5. Bg2 {[%clk 0:03:02]}  d6 {[%clk 0:02:58]} 6. O-O {[%clk 0:03:02]}  Nbd7 {[%clk 0:02:59]} 7. Nc3 {[%clk 0:03:02]}  e5 {[%clk 0:02:59]} 8. e4 {[%clk 0:03:03]}  c6 {[%clk 0:02:59]} 9. h3 {[%clk 0:03:03]}  exd4 {[%clk 0:02:59]} 10. Nxd4 {[%clk 0:03:04]}  Qb6 {[%clk 0:02:59]} 11. b3 {[%clk 0:03:01]}  Nxe4 {[%clk 0:02:47]} 12. Nxe4 {[%clk 0:02:58]}  Qxd4 {[%clk 0:02:44]} 13. Qxd4 {[%clk 0:02:55]}  Bxd4 {[%clk 0:02:44]} 14. Rb1 {[%clk 0:02:55]}  Nc5 {[%clk 0:02:36]} 15. Nxd6 {[%clk 0:02:50]}  Bg7 {[%clk 0:02:34]} 16. Nxc8 {[%clk 0:02:46]}  Raxc8 {[%clk 0:02:32]} 17. Be3 {[%clk 0:02:47]}  Ne6 {[%clk 0:02:23]} 18. Rbd1 {[%clk 0:02:41]}  a6 {[%clk 0:02:13]} 19. Rd7 {[%clk 0:02:35]}  Rc7 {[%clk 0:02:13]} 20. Rfd1 {[%clk 0:02:35]}  Rfc8 {[%clk 0:02:11]} 21. Bb6 {[%clk 0:02:31]}  Rxd7 {[%clk 0:02:09]} 22. Rxd7 {[%clk 0:02:32]}  Rb8 {[%clk 0:02:07]} 23. Ba7 {[%clk 0:02:20]}  Rd8 {[%clk 0:02:05]} 24. Rxb7 {[%clk 0:02:20]}  Rd1+ {[%clk 0:02:02]} 25. Kh2 {[%clk 0:02:20]}  c5 {[%clk 0:02:02]} 26. Bd5 {[%clk 0:02:16]}  Bd4 {[%clk 0:01:59]} 27. f4 {[%clk 0:01:29]}  Rd2+ {[%clk 0:01:50]} 28. Kh1 {[%clk 0:01:29]}  Rxa2 {[%clk 0:01:32]} 29. Bb8 {[%clk 0:01:22]}  Ra1+ {[%clk 0:01:30]} 30. Kg2 {[%clk 0:01:22]}  Ra2+ {[%clk 0:01:31]} 31. Kf1 {[%clk 0:01:16]}  Rf2+ {[%clk 0:01:24]} 32. Ke1 {[%clk 0:01:16]}  Rh2 {[%clk 0:01:24]} 33. h4 {[%clk 0:01:15]}  Rh3 {[%clk 0:01:04]} 34. g4 {[%clk 0:01:04]}  Rxh4 {[%clk 0:00:59]} 35. f5 {[%clk 0:01:04]}  gxf5 {[%clk 0:00:57]} 36. gxf5 {[%clk 0:01:04]}  Ng5 {[%clk 0:00:57]} 37. Bd6 {[%clk 0:00:52]}  Rh3 {[%clk 0:00:42]} 38. Bf4 {[%clk 0:00:45]}  h6 {[%clk 0:00:38]} 39. Bxg5 {[%clk 0:00:36]}  hxg5 {[%clk 0:00:39]} 40. Rxf7 {[%clk 0:00:35]}  Kh8 {[%clk 0:00:38]} 41. Rb7 {[%clk 0:00:34]}  g4 {[%clk 0:00:36]} 42. Kf1 {[%clk 0:00:29]}  Rh2 {[%clk 0:00:30]} 43. Rb8+ {[%clk 0:00:26]}  Kg7 {[%clk 0:00:28]} 1/2-1/2


[Site "https://www.chess.com"]

[Event "Titled Tuesday Blitz August 3 2021"]
[White "Omk124"]
[Black "Boraso, Alessio"]
[BlackFideId "848077"]
[WhiteElo "2530"]
[BlackElo "2277"]
[Result "1/2-1/2"]
[Round "06"]
[TimeControl "180+1"]
[Date "2021.08.03"]
[WhiteClock "0:00:23"]
[BlackClock "0:00:03"]

1. e4 {[%clk 0:03:00]}  Nf6 {[%clk 0:02:58]} 2. e5 {[%clk 0:03:00]}  Nd5 {[%clk 0:02:58]} 3. d4 {[%clk 0:03:01]}  d6 {[%clk 0:02:58]} 4. c4 {[%clk 0:03:02]}  Nb6 {[%clk 0:02:58]} 5. exd6 {[%clk 0:03:02]}  cxd6 {[%clk 0:02:59]} 6. Nc3 {[%clk 0:03:02]}  g6 {[%clk 0:02:58]} 7. Nf3 {[%clk 0:03:02]}  Bg4 {[%clk 0:02:57]} 8. h3 {[%clk 0:02:57]}  Bxf3 {[%clk 0:02:57]} 9. Qxf3 {[%clk 0:02:58]}  Nc6 {[%clk 0:02:57]} 10. Be3 {[%clk 0:02:57]}  Bg7 {[%clk 0:02:56]} 11. Qd1 {[%clk 0:02:57]}  O-O {[%clk 0:02:51]} 12. Be2 {[%clk 0:02:58]}  f5 {[%clk 0:02:49]} 13. Qd2 {[%clk 0:02:35]}  f4 {[%clk 0:02:45]} 14. Bxf4 {[%clk 0:02:35]}  Nxd4 {[%clk 0:02:44]} 15. Be3 {[%clk 0:02:32]}  Nf5 {[%clk 0:02:39]} 16. O-O {[%clk 0:02:31]}  Rc8 {[%clk 0:02:13]} 17. Rac1 {[%clk 0:02:17]}  Nxe3 {[%clk 0:02:01]} 18. Qxe3 {[%clk 0:02:15]}  Kh8 {[%clk 0:01:39]} 19. b3 {[%clk 0:02:13]}  Rc5 {[%clk 0:01:30]} 20. Bf3 {[%clk 0:02:09]}  Qc8 {[%clk 0:01:17]} 21. Ne4 {[%clk 0:02:06]}  Re5 {[%clk 0:01:13]} 22. Qd3 {[%clk 0:02:01]}  Qf5 {[%clk 0:01:08]} 23. Rcd1 {[%clk 0:01:58]}  Qf4 {[%clk 0:00:59]} 24. Ng3 {[%clk 0:01:53]}  Nd7 {[%clk 0:00:55]} 25. Rfe1 {[%clk 0:01:50]}  Nc5 {[%clk 0:00:52]} 26. Qc2 {[%clk 0:01:49]}  a5 {[%clk 0:00:50]} 27. Ne4 {[%clk 0:01:45]}  b6 {[%clk 0:00:31]} 28. Nxc5 {[%clk 0:01:41]}  bxc5 {[%clk 0:00:32]} 29. Bd5 {[%clk 0:01:36]}  Rxe1+ {[%clk 0:00:24]} 30. Rxe1 {[%clk 0:01:35]}  Bd4 {[%clk 0:00:24]} 31. Re2 {[%clk 0:01:34]}  e5 {[%clk 0:00:16]} 32. Bf3 {[%clk 0:01:30]}  Rf5 {[%clk 0:00:14]} 33. Re4 {[%clk 0:01:28]}  Qh6 {[%clk 0:00:10]} 34. Re2 {[%clk 0:01:24]}  Rg5 {[%clk 0:00:08]} 35. Kh2 {[%clk 0:01:22]}  Qh4 {[%clk 0:00:07]} 36. g3 {[%clk 0:01:22]}  Qh6 {[%clk 0:00:06]} 37. Qe4 {[%clk 0:01:21]}  Rf5 {[%clk 0:00:05]} 38. Qa8+ {[%clk 0:01:14]}  Qf8 {[%clk 0:00:05]} 39. Qxf8+ {[%clk 0:01:06]}  Rxf8 {[%clk 0:00:06]} 40. Kg2 {[%clk 0:01:07]}  Rf7 {[%clk 0:00:06]} 41. Bd5 {[%clk 0:01:06]}  Ra7 {[%clk 0:00:07]} 42. f4 {[%clk 0:01:01]}  Kg7 {[%clk 0:00:06]} 43. fxe5 {[%clk 0:00:59]}  Bxe5 {[%clk 0:00:04]} 44. Rf2 {[%clk 0:00:59]}  a4 {[%clk 0:00:05]} 45. g4 {[%clk 0:00:57]}  axb3 {[%clk 0:00:05]} 46. axb3 {[%clk 0:00:58]}  Ra3 {[%clk 0:00:03]} 47. g5 {[%clk 0:00:55]}  Ra7 {[%clk 0:00:01]} 48. h4 {[%clk 0:00:52]}  h6 {[%clk 0:00:02]} 49. Kh3 {[%clk 0:00:52]}  hxg5 {[%clk 0:00:02]} 50. hxg5 {[%clk 0:00:53]}  Rc7 {[%clk 0:00:02]} 51. Kg4 {[%clk 0:00:53]}  Re7 {[%clk 0:00:03]} 52. Ra2 {[%clk 0:00:53]}  Rc7 {[%clk 0:00:03]} 53. Ra8 {[%clk 0:00:53]}  Rd7 {[%clk 0:00:03]} 54. Re8 {[%clk 0:00:54]}  Rc7 {[%clk 0:00:03]} 55. Re6 {[%clk 0:00:53]}  Rd7 {[%clk 0:00:02]} 56. Be4 {[%clk 0:00:54]}  Kh7 {[%clk 0:00:02]} 57. Rxg6 {[%clk 0:00:54]}  Kh8 {[%clk 0:00:02]} 58. Rh6+ {[%clk 0:00:54]}  Kg8 {[%clk 0:00:02]} 59. Bd5+ {[%clk 0:00:54]}  Kg7 {[%clk 0:00:02]} 60. Kf5 {[%clk 0:00:55]}  Re7 {[%clk 0:00:02]} 61. Rg6+ {[%clk 0:00:55]}  Kh7 {[%clk 0:00:02]} 62. Bg8+ {[%clk 0:00:55]}  Kh8 {[%clk 0:00:02]} 63. Be6 {[%clk 0:00:56]}  Re8 {[%clk 0:00:02]} 64. Rh6+ {[%clk 0:00:56]}  Kg7 {[%clk 0:00:02]} 65. Rg6+ {[%clk 0:00:51]}  Kh7 {[%clk 0:00:03]} 66. Bf7 {[%clk 0:00:49]}  Rf8 {[%clk 0:00:03]} 67. Ke6 {[%clk 0:00:49]}  Rd8 {[%clk 0:00:02]} 68. Rh6+ {[%clk 0:00:46]}  Kg7 {[%clk 0:00:02]} 69. Bh5 {[%clk 0:00:46]}  Rh8 {[%clk 0:00:02]} 70. Rxh8 {[%clk 0:00:34]}  Kxh8 {[%clk 0:00:03]} 71. Kf7 {[%clk 0:00:34]}  Bg7 {[%clk 0:00:02]} 72. Bg6 {[%clk 0:00:33]}  Be5 {[%clk 0:00:03]} 73. Be4 {[%clk 0:00:33]}  Bg7 {[%clk 0:00:02]} 74. Ke6 {[%clk 0:00:27]}  Be5 {[%clk 0:00:03]} 75. Kd5 {[%clk 0:00:25]}  Kg7 {[%clk 0:00:04]} 76. Ke6 {[%clk 0:00:25]}  Bf4 {[%clk 0:00:03]} 77. g6 {[%clk 0:00:24]}  Be5 {[%clk 0:00:04]} 78. b4 {[%clk 0:00:20]}  cxb4 {[%clk 0:00:04]} 79. c5 {[%clk 0:00:21]}  Bf4 {[%clk 0:00:02]} 80. c6 {[%clk 0:00:20]}  d5 {[%clk 0:00:03]} 81. Kxd5 {[%clk 0:00:20]}  b3 {[%clk 0:00:03]} 82. Kc4 {[%clk 0:00:20]}  b2 {[%clk 0:00:03]} 83. Kb3 {[%clk 0:00:21]}  Be5 {[%clk 0:00:02]} 84. Kc2 {[%clk 0:00:21]}  Kf6 {[%clk 0:00:03]} 85. Kb1 {[%clk 0:00:20]}  Ke7 {[%clk 0:00:03]} 86. Ka2 {[%clk 0:00:20]}  Kd6 {[%clk 0:00:04]} 87. Kb3 {[%clk 0:00:21]}  b1=Q+ {[%clk 0:00:02]} 88. Bxb1 {[%clk 0:00:22]}  Kxc6 {[%clk 0:00:03]} 89. Kc4 {[%clk 0:00:22]}  Kd6 {[%clk 0:00:03]} 90. g7 {[%clk 0:00:23]}  Bxg7 {[%clk 0:00:03]} 1/2-1/2


[Site "https://www.chess.com"]

[Event "Titled Tuesday Blitz August 3 2021"]
[White "Onyshchuk, Volodymyr"]
[Black "Korchmar, Vasiliy"]
[WhiteFideId "14114038"]
[BlackFideId "24131750"]
[WhiteElo "2603"]
[BlackElo "2370"]
[Result "1-0"]
[Round "06"]
[TimeControl "180+1"]
[Date "2021.08.03"]
[WhiteClock "0:01:07"]
[BlackClock "0:00:31"]

1. e4 {[%clk 0:03:00]}  c5 {[%clk 0:02:59]} 2. Ne2 {[%clk 0:02:53]}  d6 {[%clk 0:02:59]} 3. g3 {[%clk 0:02:53]}  Nc6 {[%clk 0:02:59]} 4. Bg2 {[%clk 0:02:53]}  g6 {[%clk 0:02:58]} 5. c3 {[%clk 0:02:53]}  Bg7 {[%clk 0:02:55]} 6. d4 {[%clk 0:02:53]}  cxd4 {[%clk 0:02:39]} 7. cxd4 {[%clk 0:02:52]}  Qb6 {[%clk 0:02:39]} 8. d5 {[%clk 0:02:41]}  Ne5 {[%clk 0:02:40]} 9. O-O {[%clk 0:02:34]}  Bg4 {[%clk 0:02:40]} 10. Nbc3 {[%clk 0:02:32]}  Nf3+ {[%clk 0:02:26]} 11. Kh1 {[%clk 0:02:31]}  h5 {[%clk 0:02:27]} 12. Be3 {[%clk 0:02:26]}  Qd8 {[%clk 0:02:16]} 13. Qa4+ {[%clk 0:02:23]}  Kf8 {[%clk 0:02:14]} 14. Ng1 {[%clk 0:02:18]}  Nxg1 {[%clk 0:02:07]} 15. Kxg1 {[%clk 0:02:18]}  h4 {[%clk 0:02:08]} 16. Rac1 {[%clk 0:02:12]}  Nf6 {[%clk 0:01:56]} 17. Qb3 {[%clk 0:02:08]}  hxg3 {[%clk 0:01:31]} 18. hxg3 {[%clk 0:02:08]}  Nd7 {[%clk 0:01:29]} 19. f3 {[%clk 0:02:04]}  Bh3 {[%clk 0:01:29]} 20. Bxh3 {[%clk 0:02:04]}  Rxh3 {[%clk 0:01:30]} 21. Kg2 {[%clk 0:02:04]}  Rh5 {[%clk 0:01:26]} 22. Nb5 {[%clk 0:01:57]}  a6 {[%clk 0:01:08]} 23. Nd4 {[%clk 0:01:48]}  Nc5 {[%clk 0:01:08]} 24. Qc2 {[%clk 0:01:45]}  Qd7 {[%clk 0:01:07]} 25. g4 {[%clk 0:01:43]}  Rh7 {[%clk 0:01:02]} 26. b4 {[%clk 0:01:41]}  Na4 {[%clk 0:00:58]} 27. Qc7 {[%clk 0:01:38]}  Qe8 {[%clk 0:00:59]} 28. Qxb7 {[%clk 0:01:33]}  Rb8 {[%clk 0:00:58]} 29. Qxa6 {[%clk 0:01:33]}  Be5 {[%clk 0:00:41]} 30. f4 {[%clk 0:01:16]}  Qd7 {[%clk 0:00:39]} 31. Ne6+ {[%clk 0:01:07]}  fxe6 {[%clk 0:00:33]} 32. fxe5+ {[%clk 0:01:07]}  Kg8 {[%clk 0:00:31]} 33. Qc6 {[%clk 0:01:07]} 1-0


[Site "https://www.chess.com"]

[Event "Titled Tuesday Blitz August 3 2021"]
[White "Ouellet, Maili-Jade"]
[Black "Ismagilov, Damir"]
[WhiteFideId "2620472"]
[BlackFideId "34199982"]
[WhiteElo "1886"]
[BlackElo "2075"]
[Result "0-1"]
[Round "06"]
[TimeControl "180+1"]
[Date "2021.08.03"]
[WhiteClock "0:00:03"]
[BlackClock "0:01:17"]

1. d4 {[%clk 0:03:00]}  d5 {[%clk 0:02:59]} 2. c4 {[%clk 0:03:01]}  dxc4 {[%clk 0:03:00]} 3. e4 {[%clk 0:03:01]}  Nf6 {[%clk 0:02:57]} 4. Nc3 {[%clk 0:02:59]}  e5 {[%clk 0:02:55]} 5. d5 {[%clk 0:02:55]}  c6 {[%clk 0:02:55]} 6. Bxc4 {[%clk 0:02:54]}  b5 {[%clk 0:02:52]} 7. Bb3 {[%clk 0:02:30]}  b4 {[%clk 0:02:52]} 8. Nce2 {[%clk 0:02:23]}  Nxe4 {[%clk 0:02:51]} 9. Qc2 {[%clk 0:02:10]}  Nc5 {[%clk 0:02:42]} 10. dxc6 {[%clk 0:01:51]}  Nxc6 {[%clk 0:02:36]} 11. Nf3 {[%clk 0:01:44]}  Be7 {[%clk 0:02:21]} 12. O-O {[%clk 0:01:31]}  O-O {[%clk 0:02:20]} 13. Be3 {[%clk 0:01:30]}  Nxb3 {[%clk 0:02:18]} 14. Qxc6 {[%clk 0:01:18]}  Bd7 {[%clk 0:02:13]} 15. Qd5 {[%clk 0:01:10]}  Nxa1 {[%clk 0:02:09]} 16. Nxe5 {[%clk 0:00:53]}  Be6 {[%clk 0:01:49]} 17. Qxd8 {[%clk 0:00:52]}  Bxd8 {[%clk 0:01:43]} 18. Rxa1 {[%clk 0:00:50]}  Bf6 {[%clk 0:01:43]} 19. f4 {[%clk 0:00:26]}  Bxe5 {[%clk 0:01:39]} 20. fxe5 {[%clk 0:00:26]}  Rfc8 {[%clk 0:01:38]} 21. Nd4 {[%clk 0:00:25]}  a5 {[%clk 0:01:36]} 22. Kf2 {[%clk 0:00:24]}  a4 {[%clk 0:01:34]} 23. Ke2 {[%clk 0:00:24]}  a3 {[%clk 0:01:34]} 24. b3 {[%clk 0:00:23]}  h6 {[%clk 0:01:29]} 25. Kd3 {[%clk 0:00:22]}  Rc3+ {[%clk 0:01:27]} 26. Ke2 {[%clk 0:00:22]}  Rac8 {[%clk 0:01:28]} 27. Bd2 {[%clk 0:00:20]}  Bg4+ {[%clk 0:01:22]} 28. Ke1 {[%clk 0:00:12]}  Rd3 {[%clk 0:01:22]} 29. Nb5 {[%clk 0:00:10]}  Rc2 {[%clk 0:01:20]} 30. Bxb4 {[%clk 0:00:10]}  Rxg2 {[%clk 0:01:18]} 31. Kf1 {[%clk 0:00:05]}  Bh3 {[%clk 0:01:18]} 32. Rc1 {[%clk 0:00:03]}  Rc2+ {[%clk 0:01:17]} 0-1


[Site "https://www.chess.com"]

[Event "Titled Tuesday Blitz August 3 2021"]
[White "Perera Alfonso, Rene Humberto"]
[Black "Hansen, Sune Berg"]
[WhiteFideId "3514722"]
[BlackFideId "1400266"]
[WhiteElo "2313"]
[BlackElo "2653"]
[Result "0-1"]
[Round "06"]
[TimeControl "180+1"]
[Date "2021.08.03"]
[WhiteClock "0:00:03"]
[BlackClock "0:00:31"]

1. e4 {[%clk 0:03:00]}  e5 {[%clk 0:02:59]} 2. Nf3 {[%clk 0:03:00]}  Nf6 {[%clk 0:02:59]} 3. Nxe5 {[%clk 0:03:00]}  d6 {[%clk 0:02:58]} 4. Nf3 {[%clk 0:03:00]}  Nxe4 {[%clk 0:02:59]} 5. d4 {[%clk 0:03:00]}  d5 {[%clk 0:02:58]} 6. Bd3 {[%clk 0:03:01]}  Bd6 {[%clk 0:02:59]} 7. O-O {[%clk 0:03:00]}  O-O {[%clk 0:02:58]} 8. c4 {[%clk 0:03:00]}  c6 {[%clk 0:02:57]} 9. Qc2 {[%clk 0:03:00]}  Na6 {[%clk 0:02:46]} 10. a3 {[%clk 0:02:59]}  f5 {[%clk 0:02:44]} 11. Nc3 {[%clk 0:02:57]}  Nc7 {[%clk 0:02:43]} 12. c5 {[%clk 0:02:54]}  Be7 {[%clk 0:02:37]} 13. Ne5 {[%clk 0:02:54]}  Ne6 {[%clk 0:02:24]} 14. Ne2 {[%clk 0:02:50]}  Bf6 {[%clk 0:02:20]} 15. f4 {[%clk 0:02:09]}  Bd7 {[%clk 0:02:09]} 16. Be3 {[%clk 0:02:08]}  Be8 {[%clk 0:02:08]} 17. Ng3 {[%clk 0:02:08]}  g6 {[%clk 0:01:49]} 18. b4 {[%clk 0:02:08]}  Rc8 {[%clk 0:01:40]} 19. a4 {[%clk 0:02:07]}  b6 {[%clk 0:01:40]} 20. Rac1 {[%clk 0:02:01]}  bxc5 {[%clk 0:01:37]} 21. bxc5 {[%clk 0:02:00]}  Rb8 {[%clk 0:01:28]} 22. Rb1 {[%clk 0:01:55]}  Rxb1 {[%clk 0:01:22]} 23. Rxb1 {[%clk 0:01:54]}  Qc7 {[%clk 0:01:13]} 24. Nxe4 {[%clk 0:01:52]}  fxe4 {[%clk 0:01:12]} 25. Ba6 {[%clk 0:01:42]}  g5 {[%clk 0:01:12]} 26. Rb7 {[%clk 0:01:03]}  Qa5 {[%clk 0:01:10]} 27. Qe2 {[%clk 0:01:03]}  gxf4 {[%clk 0:00:44]} 28. Bd2 {[%clk 0:01:01]}  Qxa4 {[%clk 0:00:42]} 29. Qg4+ {[%clk 0:00:03]}  Ng7 {[%clk 0:00:42]} 30. Bxf4 {[%clk 0:00:03]}  Qxd4+ {[%clk 0:00:33]} 31. Kh1 {[%clk 0:00:03]}  Qa1+ {[%clk 0:00:31]} 0-1


[Site "https://www.chess.com"]

[Event "Titled Tuesday Blitz August 3 2021"]
[White "Pert, Richard G"]
[Black "Silva, Miguel Antonio Neto"]
[WhiteFideId "404748"]
[BlackFideId "1911929"]
[WhiteElo "2441"]
[BlackElo "2283"]
[Result "0-1"]
[Round "06"]
[TimeControl "180+1"]
[Date "2021.08.03"]
[WhiteClock "0:00:03"]
[BlackClock "0:00:19"]

1. e4 {[%clk 0:03:00]}  e5 {[%clk 0:02:56]} 2. Nf3 {[%clk 0:03:00]}  Nc6 {[%clk 0:02:56]} 3. d4 {[%clk 0:03:00]}  exd4 {[%clk 0:02:56]} 4. Nxd4 {[%clk 0:03:00]}  Nf6 {[%clk 0:02:55]} 5. Nc3 {[%clk 0:02:58]}  Bb4 {[%clk 0:02:55]} 6. Nxc6 {[%clk 0:02:58]}  bxc6 {[%clk 0:02:54]} 7. Bd3 {[%clk 0:02:58]}  d5 {[%clk 0:02:54]} 8. exd5 {[%clk 0:02:56]}  O-O {[%clk 0:02:54]} 9. O-O {[%clk 0:02:56]}  cxd5 {[%clk 0:02:52]} 10. h3 {[%clk 0:02:56]}  h6 {[%clk 0:02:46]} 11. Qf3 {[%clk 0:02:52]}  c6 {[%clk 0:02:45]} 12. Re1 {[%clk 0:02:48]}  Rb8 {[%clk 0:02:41]} 13. a3 {[%clk 0:02:36]}  Bd6 {[%clk 0:02:36]} 14. b4 {[%clk 0:02:17]}  Re8 {[%clk 0:02:33]} 15. Rxe8+ {[%clk 0:02:08]}  Nxe8 {[%clk 0:02:32]} 16. Be3 {[%clk 0:01:53]}  Be5 {[%clk 0:02:19]} 17. Bd2 {[%clk 0:01:51]}  Qf6 {[%clk 0:02:15]} 18. Re1 {[%clk 0:01:38]}  Be6 {[%clk 0:01:55]} 19. Qxf6 {[%clk 0:01:13]}  Bxf6 {[%clk 0:01:55]} 20. Na4 {[%clk 0:01:10]}  Nd6 {[%clk 0:01:45]} 21. Nc5 {[%clk 0:01:09]}  Bf5 {[%clk 0:01:29]} 22. Bf4 {[%clk 0:01:05]}  Bxd3 {[%clk 0:01:16]} 23. Bxd6 {[%clk 0:01:01]}  Rd8 {[%clk 0:01:15]} 24. Bc7 {[%clk 0:00:55]}  Rc8 {[%clk 0:01:12]} 25. cxd3 {[%clk 0:00:43]}  Rxc7 {[%clk 0:01:12]} 26. Re8+ {[%clk 0:00:44]}  Kh7 {[%clk 0:01:12]} 27. Kf1 {[%clk 0:00:41]}  Bb2 {[%clk 0:01:11]} 28. a4 {[%clk 0:00:39]}  Bc3 {[%clk 0:01:10]} 29. Rb8 {[%clk 0:00:34]}  Re7 {[%clk 0:01:09]} 30. g3 {[%clk 0:00:34]}  g5 {[%clk 0:00:55]} 31. b5 {[%clk 0:00:33]}  cxb5 {[%clk 0:00:54]} 32. axb5 {[%clk 0:00:34]}  Re1+ {[%clk 0:00:51]} 33. Kg2 {[%clk 0:00:33]}  Re2 {[%clk 0:00:51]} 34. Rb7 {[%clk 0:00:30]}  Kg6 {[%clk 0:00:49]} 35. Rd7 {[%clk 0:00:16]}  Bd4 {[%clk 0:00:39]} 36. Rxd5 {[%clk 0:00:15]}  Rxf2+ {[%clk 0:00:38]} 37. Kg1 {[%clk 0:00:16]}  Bxc5 {[%clk 0:00:34]} 38. Rxc5 {[%clk 0:00:15]}  Rf3 {[%clk 0:00:33]} 39. Rc6+ {[%clk 0:00:14]}  f6 {[%clk 0:00:32]} 40. Kg2 {[%clk 0:00:11]}  Rxd3 {[%clk 0:00:32]} 41. Ra6 {[%clk 0:00:11]}  Rb3 {[%clk 0:00:32]} 42. Rxa7 {[%clk 0:00:11]}  Rxb5 {[%clk 0:00:32]} 43. Ra3 {[%clk 0:00:11]}  h5 {[%clk 0:00:32]} 44. Kf3 {[%clk 0:00:11]}  Rb4 {[%clk 0:00:32]} 45. Rc3 {[%clk 0:00:11]}  Rb5 {[%clk 0:00:26]} 46. Ra3 {[%clk 0:00:10]}  Kf5 {[%clk 0:00:26]} 47. h4 {[%clk 0:00:10]}  g4+ {[%clk 0:00:22]} 48. Ke3 {[%clk 0:00:10]}  Re5+ {[%clk 0:00:21]} 49. Kf2 {[%clk 0:00:09]}  Rd5 {[%clk 0:00:20]} 50. Ke3 {[%clk 0:00:08]}  Kg6 {[%clk 0:00:21]} 51. Ra4 {[%clk 0:00:07]}  Rb5 {[%clk 0:00:21]} 52. Rc4 {[%clk 0:00:04]}  Rb3+ {[%clk 0:00:21]} 53. Kf4 {[%clk 0:00:03]}  Rf3+ {[%clk 0:00:20]} 54. Ke4 {[%clk 0:00:04]}  Rxg3 {[%clk 0:00:20]} 55. Rc8 {[%clk 0:00:04]}  Rf3 {[%clk 0:00:20]} 56. Rg8+ {[%clk 0:00:04]}  Kh7 {[%clk 0:00:20]} 57. Rf8 {[%clk 0:00:04]}  Rf1 {[%clk 0:00:20]} 58. Ke3 {[%clk 0:00:03]}  Kg7 {[%clk 0:00:20]} 59. Rb8 {[%clk 0:00:02]}  g3 {[%clk 0:00:20]} 60. Ke2 {[%clk 0:00:02]}  g2 {[%clk 0:00:20]} 61. Rb7+ {[%clk 0:00:03]}  Kg6 {[%clk 0:00:19]} 62. Rb8 {[%clk 0:00:03]}  g1=Q {[%clk 0:00:19]} 0-1


[Site "https://www.chess.com"]

[Event "Titled Tuesday Blitz August 3 2021"]
[White "Petriashvili, Nikoloz"]
[Black "Alavkin, Arseny"]
[WhiteFideId "13611216"]
[BlackFideId "4120612"]
[WhiteElo "2430"]
[BlackElo "2401"]
[Result "0-1"]
[Round "06"]
[TimeControl "180+1"]
[Date "2021.08.03"]
[WhiteClock "0:00:11"]
[BlackClock "0:01:25"]

1. e4 {[%clk 0:03:00]}  e6 {[%clk 0:03:00]} 2. d4 {[%clk 0:03:00]}  d5 {[%clk 0:03:00]} 3. Nd2 {[%clk 0:03:01]}  Be7 {[%clk 0:03:00]} 4. Ngf3 {[%clk 0:03:00]}  Nf6 {[%clk 0:03:01]} 5. e5 {[%clk 0:02:59]}  Nfd7 {[%clk 0:03:01]} 6. Bd3 {[%clk 0:02:59]}  c5 {[%clk 0:03:02]} 7. c3 {[%clk 0:03:00]}  Nc6 {[%clk 0:03:03]} 8. O-O {[%clk 0:02:58]}  g5 {[%clk 0:03:03]} 9. dxc5 {[%clk 0:02:42]}  g4 {[%clk 0:03:03]} 10. Nd4 {[%clk 0:02:42]}  Ndxe5 {[%clk 0:03:04]} 11. Bb5 {[%clk 0:02:40]}  Bd7 {[%clk 0:03:05]} 12. Re1 {[%clk 0:02:32]}  Rg8 {[%clk 0:03:03]} 13. b4 {[%clk 0:02:27]}  h5 {[%clk 0:03:02]} 14. Nf1 {[%clk 0:02:22]}  h4 {[%clk 0:02:57]} 15. Bf4 {[%clk 0:02:14]}  Ng6 {[%clk 0:02:56]} 16. Qxg4 {[%clk 0:02:09]}  e5 {[%clk 0:02:49]} 17. Nf5 {[%clk 0:02:08]}  Qc8 {[%clk 0:02:20]} 18. N1e3 {[%clk 0:02:08]}  exf4 {[%clk 0:02:14]} 19. Nxd5 {[%clk 0:01:51]}  Bxf5 {[%clk 0:02:12]} 20. Nxe7 {[%clk 0:01:22]}  Bxg4 {[%clk 0:02:10]} 21. Nxc8+ {[%clk 0:01:22]}  Kd7 {[%clk 0:02:08]} 22. Nd6 {[%clk 0:01:22]}  Be6 {[%clk 0:02:09]} 23. Nxb7 {[%clk 0:01:21]}  Rab8 {[%clk 0:02:09]} 24. Rad1+ {[%clk 0:01:14]}  Kc7 {[%clk 0:02:09]} 25. Bxc6 {[%clk 0:01:03]}  Kxc6 {[%clk 0:02:10]} 26. Na5+ {[%clk 0:01:03]}  Kc7 {[%clk 0:02:10]} 27. Rd6 {[%clk 0:01:01]}  Bd7 {[%clk 0:01:54]} 28. Red1 {[%clk 0:00:48]}  Ba4 {[%clk 0:01:47]} 29. Re1 {[%clk 0:00:30]}  Rge8 {[%clk 0:01:42]} 30. Kf1 {[%clk 0:00:21]}  Rxe1+ {[%clk 0:01:35]} 31. Kxe1 {[%clk 0:00:22]}  Rd8 {[%clk 0:01:30]} 32. Ra6 {[%clk 0:00:19]}  Rd1+ {[%clk 0:01:27]} 33. Ke2 {[%clk 0:00:19]}  Bb5+ {[%clk 0:01:28]} 34. Kxd1 {[%clk 0:00:19]}  Bxa6 {[%clk 0:01:29]} 35. c4 {[%clk 0:00:15]}  Bb7 {[%clk 0:01:25]} 36. g3 {[%clk 0:00:10]}  fxg3 {[%clk 0:01:26]} 37. hxg3 {[%clk 0:00:11]}  h3 {[%clk 0:01:25]} 0-1


[Site "https://www.chess.com"]

[Event "Titled Tuesday Blitz August 3 2021"]
[White "Potapova, Margarita"]
[Black "Odegov, Artem"]
[WhiteFideId "14126869"]
[BlackFideId "34183644"]
[WhiteElo "2229"]
[BlackElo "2288"]
[Result "1-0"]
[Round "06"]
[TimeControl "180+1"]
[Date "2021.08.03"]
[WhiteClock "0:01:41"]
[BlackClock "0:00:06"]

1. d4 {[%clk 0:03:00]}  Nf6 {[%clk 0:02:57]} 2. c4 {[%clk 0:03:01]}  c5 {[%clk 0:02:58]} 3. d5 {[%clk 0:03:01]}  b5 {[%clk 0:02:58]} 4. cxb5 {[%clk 0:03:01]}  a6 {[%clk 0:02:59]} 5. bxa6 {[%clk 0:03:02]}  Bxa6 {[%clk 0:02:59]} 6. Nc3 {[%clk 0:03:02]}  d6 {[%clk 0:03:00]} 7. e4 {[%clk 0:03:03]}  Bxf1 {[%clk 0:03:01]} 8. Kxf1 {[%clk 0:03:04]}  g6 {[%clk 0:03:02]} 9. Nf3 {[%clk 0:03:04]}  Bg7 {[%clk 0:03:02]} 10. g3 {[%clk 0:03:05]}  O-O {[%clk 0:03:03]} 11. Kg2 {[%clk 0:03:06]}  Nbd7 {[%clk 0:03:03]} 12. a4 {[%clk 0:03:06]}  Qa5 {[%clk 0:03:02]} 13. Qc2 {[%clk 0:03:03]}  Rfb8 {[%clk 0:02:59]} 14. Bd2 {[%clk 0:03:00]}  Ng4 {[%clk 0:02:53]} 15. Nb5 {[%clk 0:02:55]}  Qb6 {[%clk 0:02:53]} 16. Bc3 {[%clk 0:02:53]}  Bxc3 {[%clk 0:02:43]} 17. bxc3 {[%clk 0:02:49]}  c4 {[%clk 0:02:34]} 18. Nfd4 {[%clk 0:02:45]}  Nc5 {[%clk 0:02:30]} 19. Rhb1 {[%clk 0:02:36]}  Nd3 {[%clk 0:02:21]} 20. Nc6 {[%clk 0:02:31]}  Ndxf2 {[%clk 0:02:20]} 21. Qe2 {[%clk 0:02:23]}  h5 {[%clk 0:01:54]} 22. h3 {[%clk 0:02:21]}  Ne3+ {[%clk 0:01:40]} 23. Kxf2 {[%clk 0:02:20]}  Nxd5+ {[%clk 0:01:40]} 24. Nbd4 {[%clk 0:01:57]}  Qc5 {[%clk 0:00:21]} 25. exd5 {[%clk 0:01:50]}  Rxb1 {[%clk 0:00:20]} 26. Rxb1 {[%clk 0:01:50]}  Kh7 {[%clk 0:00:13]} 27. Qxe7 {[%clk 0:01:47]}  Qxd5 {[%clk 0:00:13]} 28. Rb5 {[%clk 0:01:42]}  Qh1 {[%clk 0:00:05]} 29. Qxf7+ {[%clk 0:01:42]}  Kh6 {[%clk 0:00:05]} 30. Qf4+ {[%clk 0:01:40]}  Kh7 {[%clk 0:00:05]} 31. Rb7+ {[%clk 0:01:40]}  Kg8 {[%clk 0:00:05]} 32. Qf7+ {[%clk 0:01:40]}  Kh8 {[%clk 0:00:06]} 33. Qh7# {[%clk 0:01:41]} 1-0


[Site "https://www.chess.com"]